{"text_format":"2","workbook":"xlsx","n_sheets":2,"sheets":["RESUMO","ORÇAMENTO"],"not_rendered":{"charts":0,"images":0,"macros":0,"external_links":443,"defined_names":11050,"comments":0,"pivot_tables":0},"unopened":[],"bounds":{"document_bytes":16777216,"sheet_cells":100000,"run_cost":"one","rows_first":2000,"rows_last":500,"rows_between":2000,"halvings":0,"cell_chars":16384,"cell_head_chars":4096},"cells_cut":0,"cells_raw":0,"read":"whole","date_system":"1900"}

{"sheet":"RESUMO","index":0,"n_rows":15,"n_cols":5,"rows_kept":15,"cut":false,"hidden":false,"merged":[[14,1,14,4],[1,1,2,2],[1,3,1,4],[3,1,4,1],[3,2,4,2],[3,3,3,4],[13,1,13,4]]}
[]
[null,"PLANILHA ORÇAMENTÁRIA RESUMIDA",null,"Data base: Abril 2023"]
[null,null,null,"B.D.I.",0.28220000000000001]
[null,"Item","Descrição","Desonerado"]
[null,null,null,"Total","Peso (%)"]
[null,1,"ADMINISTRAÇÃO",{"$f":"ORÇAMENTO!$I$7","v":8215.98},{"$f":"ROUND(D6/$D$11,4)","v":7.1499999999999994E-2}]
[null,2,"CABEAMENTO ESTRUTURADO /CFTV-IP",{"$f":"ORÇAMENTO!$I$9","v":44482.41},{"$f":"ROUND(D7/$D$11,4)","v":0.38690000000000002}]
[null,3,"SISTEMA DE CLIMATIZAÇÃO",{"$f":"ORÇAMENTO!$I$32","v":6528.33},{"$f":"ROUND(D8/$D$11,4)","v":5.6800000000000003E-2}]
[null," 4 ","INSTALAÇÕES ELÉTRICAS COMUM E ESTABILIZADAS",{"$f":"ORÇAMENTO!$I$45","v":53678.39},{"$f":"ROUND(D9/$D$11,4)","v":0.46689999999999998}]
[null,5,"REVISÃO DAS INSTALAÇÕES ELÉTRICAS EXISTENTE",{"$f":"ORÇAMENTO!$I$85","v":2065.81},{"$f":"ROUND(D10/$D$11,4)","v":1.7999999999999999E-2}]
[null,null,"TOTAL",{"$f":"ROUND(SUM(D6:D10),2)","v":114970.92},{"$f":"D11/D11","v":1}]
[]
[null,"ORIENTAÇÕES GERAIS"]
[null,"Nesta aba \"RESUMO\" preencher apenas o % de BDI na célula D3."]
[null,"Na aba \"ORÇAMENTO\" preencher apenas a coluna G com os preços unitários e o % de BDI na célula H2."]

{"sheet":"ORÇAMENTO","index":1,"n_rows":95,"n_cols":10,"rows_kept":95,"cut":false,"hidden":false,"merged":[[0,0,0,2],[0,6,1,6],[0,8,1,9],[1,0,1,2],[2,0,2,9],[3,8,4,8],[3,9,4,9],[94,6,94,7],[3,0,4,0],[3,1,4,1],[3,2,4,2],[3,3,4,3],[3,4,4,4],[3,5,4,5],[3,6,4,6],[3,7,4,7]]}
[null,null,null,"Bancos",null,null,"DESONERADO","B.D.I.",{"$f":"I95","v":114970.92}]
["Prazo de Execução: 30 dias corridos",null,null,"SINAPI - 04/2023 - Goiás\nAGETOP CIVIL - 05/2023 - Goiás\n",null,null,null,0.28220000000000001]
["PLANILHA ORÇAMENTÁRIA SINTÉTICA COM VALOR DO MATERIAL E DA MÃO DE OBRA"]
["Item","Código","Banco","Descrição","Und","Quant.","Valor Unit","Valor Unit com BDI","Valor Total","Peso (%)"]
[]
[]
[1,null,null,"ADMINISTRAÇÃO LOCAL","MÊS",1,6407.72,{"$f":"ROUND(G7*(1+$H$2),2)","v":8215.98},{"$f":"ROUND(F7*H7,2)","v":8215.98},{"$f":"ROUND(I7/$I$95,4)","v":7.1499999999999994E-2}]
[]
[" 2 ",null,null,"CABEAMENTO ESTRUTURADO /CFTV-IP",{"$nulls":4},{"$f":"SUM(I10:I31)","v":44482.41},{"$f":"ROUND(I9/$I$95,4)","v":0.38690000000000002}]
[" 2.1"," MEC - COD 01 ","Próprio","TÊ HORIZONTAL 100 X 50 MM PARA ELETROCALHA METÁLICA, FORNECIMENTO E INSTALAÇÃO","UND",1,54.980000000000004,{"$f":"ROUND(G10*(1+$H$2),2)","v":70.5},{"$f":"ROUND(F10*H10,2)","v":70.5},5.9999999999999995E-4]
[" 2.2 "," MEC - COD 02 ","Próprio","ELETROCALHA METÁLICA 100X50MM, LISA CHAPA 18 BARRA 3 METROS AÉREO - FORNECIMENTO E INSTALAÇÃO","UND",3,123.86,{"$f":"ROUND(G11*(1+$H$2),2)","v":158.81},{"$f":"ROUND(F11*H11,2)","v":476.43},4.1000000000000003E-3]
[" 2.3 "," MEC - COD 03 ","Próprio","ELETROCALHA - CURVA 90 VERTICAL 100x50MM CHAPA 20 - FORNECIMENTO E INSTALAÇÃO","UND",1,48.39,62.05,62.05,5.0000000000000001E-4]
[" 2.4 "," MEC - COD 17 ","Próprio","EMENDA INTERNA ELETROCALHA 100X50MM - FORNECIMENTO E INSTALAÇÃO","UN",2,17.700000000000003,22.69,45.38,4.0000000000000002E-4]
[" 2.5 "," MEC - COD 04 ","Próprio","SAIDA HORIZONTAL PARA ELETRODUTO D=3/4\", COM BOX RETO EM ELETROCALHA - FORNECIMENTO E INSTALAÇÃO","CJ",36,13.540000000000001,17.36,624.96,5.4000000000000003E-3]
[" 2.6 "," MEC - COD 05 ","Próprio","ELETRODUTO EM ACO GALVANIZADO ELETROLITICO, LEVE, DIAMETRO 3/4\" EM  PAREDE - FORNECIMENTO E INSTALAÇÃO","M",100.19,16.32,20.93,2096.98,1.8200000000000001E-2]
[" 2.7 "," MEC - COD 06 ","Próprio","LUVA PARA ELETRODUTO, GALVANIZADO, DN 25 MM (3/4\"), PARA CIRCUITOS TERMINAIS, INSTALADA EM FORRO E PAREDE - FORNECIMENTO E INSTALAÇÃO","UND",74,7.49,9.6,710.4,6.1999999999999998E-3]
[" 2.8 "," MEC - COD 07 ","Próprio","ELETRODUTO EM ACO GALVANIZADO ELETROLITICO, LEVE, DIAMETRO 3/4\", SOB O FORRO, APARENTE(BARRA DE 3 METROS) - FORNECIMENTO E INSTALAÇÃO","BR",40,45.66,58.55,2342,2.0400000000000001E-2]
[" 2.9 "," MEC - COD 08 ","Próprio","CURVA 90 GRAUS, PARA ELETRODUTO, EM ACO GALVANIZADO ELETROLITICO, DIAMETRO DE 20 MM (3/4\"), PARA CIRCUITOS TERMINAIS, INSTALADA EM FORRO - FORNECIMENTO E INSTALAÇÃO.","UND",42,13.17,16.89,709.38,6.1999999999999998E-3]
[" 2.10 "," MEC - COD 09 ","Próprio","ELETRODUTO FLEXIVEL, EM ACO GALVANIZADO, REVESTIDO EXTERNAMENTE COM PVC PRETO, DIAMETRO EXTERNO DE 25 MM (3/4\"), TIPO SEALTUBO - FORNECIMENTO E INSTALAÇÃO","M",4.8,17.399999999999999,22.31,107.09,8.9999999999999998E-4]
[" 2.11 ",95801,"SINAPI","CONDULETE DE ALUMÍNIO, TIPO X, PARA ELETRODUTO DE AÇO GALVANIZADO DN 20 MM (3/4) - FORNECIMENTO E INSTALAÇÃO","UN",10,33.22,42.59,425.9,3.7000000000000002E-3]
[" 2.12 ",98297,"SINAPI","CABO ELETRÔNICO CATEGORIA 6, INSTALADO EM EDIFICAÇÃO INSTITUCIONAL - FORNECIMENTO E INSTALAÇÃO. AF_11/2019","M",1810.3,8.08,10.36,18754.71,0.16309999999999999]
[" 2.13 "," MEC - COD 10 ","Próprio","CONDULETE ALUMINIO \"LR\" 3/4, COM  CONDULETE METÁLICO PARA 1 TOMADA - FORNECIMENTO E INSTALAÇÃO","CJ",7,40.75,52.25,365.75,3.2000000000000002E-3]
[" 2.14 "," MEC - COD 11 ","Próprio","CONDULETE ALUMINIO \"E\" 3/4\" , TAMPA METÁLICA PARA 1 PONTO RJ45 - FORNECIMENTO E INSTALAÇÃO","CJ",23,39.500000000000007,50.65,1164.95,1.01E-2]
[" 2.15 "," MEC - COD 12 ","Próprio","CONDULETE ALUMINIO \"X\" 3/4\" , TAMPA METÁLICA PARA 1 PONTO RJ45 - FORNECIMENTO E INSTALAÇÃO","CJ",22,40.75,52.25,1149.5,0.01]
[" 2.16 "," MEC - COD 13 ","Próprio","BOX RETO COM ARRUELA EM ALUMINIO PARA CONDULETE - FORNECIMENTO E INSTALAÇÃO","UND",64,5.98,7.67,490.88,4.3E-3]
[" 2.17 "," MEC - COD 14 ","Próprio","TOMADA LOGICA RJ-45 CAT.6 CONJUNTO MONTADO - FORNECIMENTO E INSTALAÇÃO","UND",51,40.14,51.47,2624.97,2.2800000000000001E-2]
[" 2.18 "," COMP.ELET.09 ","Próprio","PATCH PANEL 24 PORTAS, CARREGADO, CATEGORIA 6 - FORNECIMENTO E INSTALAÇÃO","un",3,1639.6399999999999,2102.35,6307.05,5.4899999999999997E-2]
[" 2.19 "," MEC - COD 15 ","Próprio","PATCH CORD (CABO DE REDE), CATEGORIA 6 (CAT 6) UTP, 4 PARES, EXTENSAO DE 2,50 M - FORNECIMENTO E INSTALAÇÃO","UN",51,37.699999999999996,48.34,2465.34,2.1399999999999999E-2]
[" 2.20 "," MEC - COD 16 ","Próprio","PATCH CORD (CABO DE REDE), CATEGORIA 6 (CAT 6) UTP, 23 AWG, 4 PARES, EXTENSAO DE 1,50 M - FORNECIMENTO E INSTALAÇÃO","UN",51,29.31,37.58,1916.58,1.67E-2]
[" 2.21 "," MEC - COD 33 ","Próprio","CORDAO OPTICO 02F MM50 LC-UPC/LC-UPC 1.5M - FORNECIMENTO E INSTALAÇÃO","UN",3,182.25,233.68,701.04,6.1000000000000004E-3]
[" 2.22 "," MEC - COD 34 ","Próprio","MÓDULO MINI-GBIC GIGABIT 0,5KM, KGM 2105 . REF.: INTELBRAS OU EQUIVALENTE TÉCNICO - FORNECIMENTO E INSTALAÇÃO","UN",3,226.32,290.19,870.57,7.6E-3]
[3,null,null,"SISTEMA DE CLIMATIZAÇÃO",{"$nulls":4},{"$f":"ROUND(SUM(I33:I44),2)","v":6528.33},{"$f":"ROUND(I32/$I$95,4)","v":5.6800000000000003E-2}]
["3.1",97327,"SINAPI","TUBO EM COBRE FLEXÍVEL, DN 1/4\u0094, COM ISOLAMENTO, INSTALADO EM RAMAL DE ALIMENTAÇÃO DE AR CONDICIONADO COM CONDENSADORA INDIVIDUAL   FORNECIMENTO E INSTALAÇÃO. AF_12/2015","M",29.62,26.130000000000003,{"$f":"ROUND(G33*(1+$H$2),2)","v":33.5},{"$f":"ROUND(F33*H33,2)","v":992.27},8.6E-3]
["3.2",97329,"SINAPI","TUBO EM COBRE FLEXÍVEL, DN 1/2\", COM ISOLAMENTO, INSTALADO EM RAMAL DE ALIMENTAÇÃO DE AR CONDICIONADO COM CONDENSADORA INDIVIDUAL \u0096 FORNECIMENTO E INSTALAÇÃO. AF_12/2015","M",29.62,55.74,{"$f":"ROUND(G34*(1+$H$2),2)","v":71.47},{"$f":"ROUND(F34*H34,2)","v":2116.94},1.84E-2]
["3.3",103805,"SINAPI","COTOVELO EM COBRE, DN 15 MM, 90 GRAUS, SEM ANEL DE SOLDA, INSTALADO EM RAMAL E SUB-RAMAL DE GÁS COMBUSTÍVEL - FORNECIMENTO E INSTALAÇÃO. AF_04/2022","UN",26,15.889999999999997,20.37,529.62,4.5999999999999999E-3]
["3.4","HID-DPE04","Próprio","CABO PPP 3X2,5MM 1KV 90º, PARA INSTALAÇÃO DO COMANDO DO AR-CONTICIONADO (ENTRE CONDENSADORA E EVAPORADORA), FORNECIMENTO E INSTALAÇÃO","m",29.62,12.790000000000001,16.399999999999999,485.77,4.1999999999999997E-3]
["3.5","MEC-COD02","Próprio","ELETROCALHA METÁLICA 100X50MM, LISA CHAPA 18 BARRA 3 METROS, FORNECIMENTO E INSTALAÇÃO AÉREO","UND",1,123.86,158.81,158.81,1.4E-3]
["3.6","MEC-COD03","Próprio","ELETROCALHA - CURVA 90 VERTICAL 100x50MM CHAPA 20 FORNECIMENTO E INSTALAÇÃO","UND",3,48.39,62.05,186.15,1.6000000000000001E-3]
["3.7","MEC-COD35","Próprio","ELETROCALHA METÁLICA 100X50MM, LISA CHAPA 18 BARRA 3 METROS, FORNECIMENTO E INSTALAÇÃO","UN",9,107.12,137.35,1236.1500000000001,1.0800000000000001E-2]
["3.8",null,null,"DRENO DOS SPLITS",{"$nulls":5},0]
["3.8.1",89865,"SINAPI","TUBO, PVC, SOLDÁVEL, DN 25MM, INSTALADO EM DRENO DE AR-CONDICIONADO - FORNECIMENTO E INSTALAÇÃO. AF_08/2022","M",27,16.07,20.6,{"$f":"ROUND(F41*H41,2)","v":556.20000000000005},4.7999999999999996E-3]
["3.8.2",89866,"SINAPI","JOELHO 90 GRAUS, PVC, SOLDÁVEL, DN 25MM, INSTALADO EM DRENO DE AR-CONDICIONADO - FORNECIMENTO E INSTALAÇÃO. AF_08/2022","UN",11,6.42,8.23,90.53,8.0000000000000004E-4]
["3.8.3",89868,"SINAPI","LUVA, PVC, SOLDÁVEL, DN 25MM, INSTALADO EM DRENO DE AR-CONDICIONADO - FORNECIMENTO E INSTALAÇÃO. AF_08/2022","UN",11,5.05,6.48,71.28,5.9999999999999995E-4]
["3.8.4",89867,"SINAPI","JOELHO 45 GRAUS, PVC, SOLDÁVEL, DN 25MM, INSTALADO EM DRENO DE AR-CONDICIONADO - FORNECIMENTO E INSTALAÇÃO. AF_08/2022","UN",11,7.42,9.51,104.61,8.9999999999999998E-4]
[4,null,null,"INSTALAÇÕES ELÉTRICAS COMUM E ESTABILIZADAS",{"$nulls":4},{"$f":"ROUND(SUM(I46:I84),2)","v":53678.39},0.46689999999999998]
["4.1","MEC-COD07","Próprio","ELETRODUTO EM ACO GALVANIZADO ELETROLITICO, LEVE, DIAMETRO 3/4\",  INSTALADO SOB O FORRO, APARENTE(BARRA DE 3 METROS) - FORNECIMENTO E INSTALAÇÃO","BR",38,45.66,58.55,{"$f":"ROUND(F46*H46,2)","v":2224.9},1.9400000000000001E-2]
["4.2","MEC-COD05","Próprio","ELETRODUTO EM ACO GALVANIZADO ELETROLITICO, LEVE, DIAMETRO 3/4\", INSTALADO EM  PAREDE - FORNECIMENTO E INSTALAÇÃO","M",107,17.12,21.95,2348.65,2.0400000000000001E-2]
["4.3","MEC-COD08","Próprio","CURVA 90 GRAUS, PARA ELETRODUTO, EM ACO GALVANIZADO ELETROLITICO, DIAMETRO DE 20 MM (3/4\"), PARA CIRCUITOS TERMINAIS, INSTALADA EM FORRO - FORNECIMENTO E INSTALAÇÃO.","UND",31,13.17,16.89,523.59,4.5999999999999999E-3]
["4.4","MEC-COD04","Próprio","SAIDA HORIZONTAL PARA ELETRODUTO D=3/4\", COM BOX RETO, INSTALADOS EM ELETROCALHA - FORNECIMENTO E INSTALAÇÃO","CJ",43,13.540000000000001,17.36,746.48,6.4999999999999997E-3]
["4.5","MEC-COD06","Próprio","LUVA PARA ELETRODUTO, GALVANIZADO, DN 25 MM (3/4\"), PARA CIRCUITOS TERMINAIS, INSTALADA EM FORRO E PAREDE - FORNECIMENTO E INSTALAÇÃO","UND",73,7.49,9.6,700.8,6.1000000000000004E-3]
["4.6","HID-DPE03","Próprio","ELETROCALHA METÁLICA 50X50MM, BARRA 3 METROS - FORNECIMENTO E INSTALAÇÃO","UND",27,145.22,186.2,5027.3999999999996,4.3700000000000003E-2]
["4.7","MEC-COD18","Próprio","EMENDA INTERNA ELETROCALHA 50X50MM - FORNECIMENTO E INSTALAÇÃO","UN",27,10.75,13.78,372.06,3.2000000000000002E-3]
["4.8","MEC-COD20","Próprio","TÊ HORIZONTAL 20 X 50 MM PARA ELETROCALHA METÁLICA - FORNECIMENTO E INSTALAÇÃO","UN",7,33.19,42.56,297.92,2.5999999999999999E-3]
["4.9","MEC-COD21","Próprio","CURVA HORIZONTAL 90º PARA ELETROCALHA 50X50 - FORNECIMENTO E INSTALAÇÃO","UN",3,24.110000000000003,30.91,92.73,8.0000000000000004E-4]
["4.10",95795,"SINAPI","CONDULETE DE ALUMÍNIO, TIPO T, PARA ELETRODUTO DE AÇO GALVANIZADO DN 20 MM (3/4''), APARENTE - FORNECIMENTO E INSTALAÇÃO. AF_10/2022","UN",6,27.639999999999997,35.44,212.64,1.8E-3]
["4.11",95801,"SINAPI","CONDULETE DE ALUMÍNIO, TIPO X, PARA ELETRODUTO DE AÇO GALVANIZADO DN 20 MM (3/4 - FORNECIMENTO E INSTALAÇÃO","UN",11,33.22,42.59,468.49,4.1000000000000003E-3]
["4.12","MEC-COD19","Próprio","CONDULETE ALUMINIO \"E\" 3/4\" , TAMPA METÁLICA PARA 1 TOMADA - FORNECIMENTO E INSTALAÇÃO","CJ",18,33.270000000000003,42.66,767.88,6.7000000000000002E-3]
["4.13","MEC-COD22","Próprio","CONDULETE ALUMINIO \"LR\" 3/4\" , TAMPA METÁLICA PARA 1 TOMADA - FORNECIMENTO E INSTALAÇÃO","CJ",5,32.43,41.58,207.9,1.8E-3]
["4.14","MEC-COD23","Próprio","CONDULETE ALUMINIO \"X\" 3/4\" , TAMPA METÁLICA PARA 1 TOMADA - FORNECIMENTO E INSTALAÇÃO","CJ",46,31.150000000000002,39.94,1837.24,1.6E-2]
["4.15","MEC-COD24","Próprio","CONDULETE ALUMINIO \"LR\" 3/4\" , TAMPA METÁLICA PARA 3 TOMADA - FORNECIMENTO E INSTALAÇÃO","CJ",11,31.92,40.93,450.23,3.8999999999999998E-3]
["4.16","MEC-COD25","Próprio","CONDULETE ALUMINIO \"X\" 3/4\" , TAMPA METÁLICA PARA 3 TOMADA - FORNECIMENTO E INSTALAÇÃO","CJ",28,30.640000000000004,39.29,1100.1199999999999,9.5999999999999992E-3]
["4.17","MEC-COD13","Próprio","BOX RETO COM ARRUELA EM ALUMINIO PARA CONDULETE - FORNECIMENTO E INSTALAÇÃO","UND",170,5.98,7.67,1303.9000000000001,1.1299999999999999E-2]
["4.18",92015,"SINAPI","TOMADA BAIXA DE SOBREPOR (3 MÓDULOS), 2P+T 20 A, SEM SUPORTE E SEM PLACA - FORNECIMENTO E INSTALAÇÃO. AF_03/2023","UN",40,51.519999999999996,66.06,2642.4,2.3E-2]
["4.19",91999,"SINAPI","TOMADA BAIXA DE SOBREPOR  (1 MÓDULO), 2P+T 20 A, SEM SUPORTE E SEM PLACA - FORNECIMENTO E INSTALAÇÃO. AF_03/2023","UN",50,18.950000000000003,24.3,1215,1.06E-2]
["4.20",91997,"SINAPI","TOMADA MÉDIA DE SOBREPOR (1 MÓDULO), 2P+T 20 A, INCLUINDO SUPORTE E PLACA - FORNECIMENTO E INSTALAÇÃO. AF_03/2023","UN",3,31.419999999999998,40.29,120.87,1.1000000000000001E-3]
["4.21",91991,"SINAPI","TOMADA ALTA DE SOBREPOR (1 MÓDULO), 2P+T 20 A, SEM SUPORTE E SEM PLACA - FORNECIMENTO E INSTALAÇÃO. AF_03/2023","UN",16,30.41,38.99,623.84,5.4000000000000003E-3]
["4.22",91928,"SINAPI","CABO DE COBRE FLEXÍVEL ISOLADO, 4 MM², ANTI-CHAMA 450/750 V, PARA CIRCUITOS TERMINAIS - FORNECIMENTO E INSTALAÇÃO. AF_03/2023","M",2219.25,5.879999999999999,7.54,16733.150000000001,0.14549999999999999]
["4.23",91926,"SINAPI","CABO DE COBRE FLEXÍVEL ISOLADO, 2,5 MM², ANTI-CHAMA 450/750 V, PARA CIRCUITOS TERMINAIS - FORNECIMENTO E INSTALAÇÃO. AF_03/2023","M",1656.1,3.7800000000000002,4.8499999999999996,8032.09,6.9900000000000004E-2]
["4.24",101561,"SINAPI","CABO DE COBRE FLEXÍVEL ISOLADO, 16 MM², 0,6/1,0 KV, PARA REDE AÉREA DE DISTRIBUIÇÃO DE ENERGIA ELÉTRICA DE BAIXA TENSÃO - FORNECIMENTO E INSTALAÇÃO. AF_07/2020","M",33,14.770000000000001,18.940000000000001,625.02,5.4000000000000003E-3]
["4.25",101889,"SINAPI","CABO DE COBRE ISOLADO, 25 MM², ANTI-CHAMA 0,6/1 KV, INSTALADO EM ELETROCALHA OU PERFILADO - FORNECIMENTO E INSTALAÇÃO. AF_10/2020","M",12.98,23.05,29.55,383.56,3.3E-3]
["4.26",71205,"GOINFRA CIVIL","ELETRODUTO DE PVC RIGIDO DIAMETRO 2\" - FORNECIMENTO E INSTALAÇÃO","M",6.5,34.22,43.88,285.22000000000003,2.5000000000000001E-3]
["4.27",91177,"SINAPI","FIXAÇÃO DE TUBOS HORIZONTAIS DE PPR DIÂMETROS MAIORES QUE 40 MM E MENORES OU IGUAIS A 75 MM COM ABRAÇADEIRA METÁLICA RÍGIDA TIPO  D  1 1/2\" , FIXADA DIRETAMENTE NA LAJE. AF_05/2015 - FORNECIMENTO E INSTALAÇÃO","M",4,12.55,16.09,64.36,5.9999999999999995E-4]
[" 4.28",null,null,"QUADROS ELETRICOS",{"$nulls":5},0]
[" 4.28.1 ",null,null,"QUADRO ELETRICO ESTABILIZADO",{"$nulls":5},0]
[" 4.28.1.1",101878,"SINAPI","QUADRO DE DISTRIBUIÇÃO DE ENERGIA EM CHAPA DE AÇO GALVANIZADO, DE SOBREPOR, COM BARRAMENTO TRIFÁSICO, PARA 18 DISJUNTORES DIN 100A - FORNECIMENTO E INSTALAÇÃO. AF_10/2020","UN",1,504.97,{"$f":"ROUND(G75*(1+$H$2),2)","v":647.47},{"$f":"ROUND(F75*H75,2)","v":647.47},5.5999999999999999E-3]
[" 4.28.1.2",93656,"SINAPI","DISJUNTOR MONOPOLAR TIPO DIN, CORRENTE NOMINAL DE 25A - FORNECIMENTO E INSTALAÇÃO. AF_10/2020","UN",17,13.14,16.850000000000001,286.45,2.5000000000000001E-3]
[" 4.28.1.3","MEC-COD27","Próprio","DISPOSITIVO DE PROTEÇÃO CONTRA SURTOS(DPS) 20KA, 3F - FORNECIMENTO E INSTALAÇÃO","UN",1,297.79000000000002,381.83,381.83,3.3E-3]
[" 4.28.1.4",93673,"SINAPI","DISJUNTOR TRIPOLAR TIPO DIN, CORRENTE NOMINAL DE 50A - FORNECIMENTO E INSTALAÇÃO. AF_10/2020","UN",2,93.68,120.12,240.24,2.0999999999999999E-3]
[" 4.28.2 ",null,null,"QUADRO ELETRICO COMUM",{"$nulls":5},0]
[" 4.28.2.1 ","MEC-COD28","Próprio","QUADRO DE DISTRIBUIÇÃO DE ENERGIA EM CHAPA DE AÇO GALVANIZADO, DE SOBREPOR, COM BARRAMENTO TRIFÁSICO, PARA 30 DISJUNTORES DIN 150A - FORNECIMENTO E INSTALAÇÃO. AF_10/2020","UN",1,620.09,{"$f":"ROUND(G80*(1+$H$2),2)","v":795.08},{"$f":"ROUND(F80*H80,2)","v":795.08},6.8999999999999999E-3]
[" 4.28.2.2","MEC-COD27","Próprio","DISPOSITIVO DE PROTEÇÃO CONTRA SURTOS(DPS) 20KA, 3F - FORNECIMENTO E INSTALAÇÃO","UN",1,297.79000000000002,381.83,381.83,3.3E-3]
[" 4.28.2.3","MEC-COD26","Próprio","DISJUNTOR TRIPOLAR , TIPO DIN, TERMOMAGNÉTICO, CORRENTE DE 63A, 6KA - FORNECIMENTO E INSTALAÇÃO","UN",2,346.66,444.49,888.98,7.7000000000000002E-3]
[" 4.28.2.4",93655,"SINAPI","DISJUNTOR MONOPOLAR TIPO DIN, CORRENTE NOMINAL DE 20A - FORNECIMENTO E INSTALAÇÃO. AF_10/2020","UN",26,13.14,16.850000000000001,438.1,3.8E-3]
[" 4.28.2.5","MEC-COD29","Próprio","INTERRUPTOR DIFERENCIAL RESIDUAL (D.R.) BIPOLAR DE 20A-30mA - FORNECIMENTO E INSTALAÇÃO","UN",1,163.76,209.97,209.97,1.8E-3]
[5,null,null,"REVISÃO DAS INSTALAÇÕES ELÉTRICAS EXISTENTE",{"$nulls":4},{"$f":"ROUND(SUM(I86:I94),2)","v":2065.81},1.7999999999999999E-2]
[" 5.1","MEC-COD05","Próprio","ELETRODUTO EM ACO GALVANIZADO ELETROLITICO, LEVE, DIAMETRO 3/4\" - FORNECIMENTO E INSTALAÇÃO EM  PAREDE","M",7.5,17.12,{"$f":"ROUND(G86*(1+$H$2),2)","v":21.95},{"$f":"ROUND(F86*H86,2)","v":164.63},1.4E-3]
[" 5.2",91968,"SINAPI","INTERRUPTOR PARALELO (3 MÓDULOS), 10A/250V, SEM SUPORTE E SEM PLACA - FORNECIMENTO E INSTALAÇÃO. AF_03/2023","UN",2,58.410000000000004,74.89,149.78,1.2999999999999999E-3]
[" 5.3","MEC-COD24","Próprio","CONDULETE ALUMINIO \"LR\" 3/4\" , TAMPA METÁLICA PARA 3 INTERRUPTORES - FORNECIMENTO E INSTALAÇÃO","CJ",1,31.92,40.93,40.93,4.0000000000000002E-4]
[" 5.4","MEC-COD25","Próprio","CONDULETE ALUMINIO \"X\" 3/4\" , TAMPA METÁLICA PARA 3 INTERRUPTORES - FORNECIMENTO E INSTALAÇÃO","CJ",1,30.640000000000004,39.29,39.29,2.9999999999999997E-4]
[" 5.5",91978,"SINAPI","INTERRUPTOR INTERMEDIÁRIO (1 MÓDULO), 10A/250V, SEM SUPORTE E SEM PLACA - FORNECIMENTO E INSTALAÇÃO. AF_03/2023","UN",5,33.58,43.06,215.3,1.9E-3]
[" 5.6","MEC-COD19","Próprio","CONDULETE ALUMINIO \"E\" 3/4\" , TAMPA METÁLICA PARA 1 INTERRUPTOR - FORNECIMENTO E INSTALAÇÃO","CJ",5,33.270000000000003,42.66,213.3,1.9E-3]
[" 5.7","MEC-COD36","Próprio","TAMPA CEGA EM PVC PARA CONDULETE 4X2\", ISOLAR CAIXA 4X2\" COM FIAÇÃO - FORNECIMENTO E INSTALAÇÃO","UN",4,4.6500000000000004,5.96,23.84,2.0000000000000001E-4]
[" 5.8",91999,"SINAPI","TOMADA BAIXA DE EMBUTIR (1 MÓDULO), 2P+T 20 A, SEM SUPORTE E SEM PLACA - FORNECIMENTO E INSTALAÇÃO EM CAIXA MOPA. AF_03/2023","UN",34,18.950000000000003,24.3,826.2,7.1999999999999998E-3]
[" 5.9","MEC-COD37","Próprio","ISOLAR CIRCUITOS ELÉTRICOS NO PONTO ELÉTRICO E DENTRO QUADRO ELÉTRICO, FAZER A IDENTIFICAÇÃO - FORNECIMENTO E INSTALAÇÃO","UN",38,8.06,10.33,392.54,3.3999999999999998E-3]
[null,null,null,"TOTAL",null,null,"TOTAL DESONERADO",null,{"$f":"ROUND(I32+I45+I85+I9+I7,2)","v":114970.92},1]